[Event "21st Hogeschool Zeeland 2017"]
[Site "Vlissingen"]
[Date "2017.08.08"]
[Round "5"]
[White "Kuipers, Stefan"]
[Black "Nguyen, Kevin"]
[Result "1/2-1/2"]
[ECO "C77"]
[WhiteElo "2399"]
[BlackElo "2224"]
[Annotator "NA"]
[PlyCount "42"]
[EventDate "2017.??.??"]
[SourceTitle "playchess.com"]
[Source "ChessBase"]
[SourceQuality "1"]
[TimeControl "40/5400+30:1800+30"]

{[%evp 8,41,22,32767,32767,20,10,32767,22,10,15,32767,32767,12,18,9,6,32767,9,32767,32767,15,12,32767,32767,32767,0,-10,-5,-82,32767,-82,-83,-84,32767,-93]} 1. e4 {[%emt 0:00:00]} e5 {[%emt 0:08:05]} 2. Nf3 {[%emt 0:00:00]} Nc6 {[%emt 0:00:04]} 3. Bb5 {[%emt 0:03:19]} a6 {[%emt 0:00:18]} 4. Ba4 {[%emt 0:00:05]} Nf6 {[%emt 0:00:08]} 5. d3 {[%emt 0:00:06]} b5 {[%emt 0:00:07]} 6. Bb3 {[%emt 0:00:06]} Bc5 {[%emt 0:00:04]} 7. Nc3 {[%emt 0:01:43]} d6 {[%emt 0:00:45] C77: Ruy Lopez: 3...a6 4 Ba4 Nf6, unusual lines} 8. Nd5 {[%emt 0:00:34]} h6 {[%emt 0:00:05]} 9. c3 {[%emt 0:01:28]} O-O {[%emt 0:00:22]} 10. O-O {[%emt 0:01:16]} Rb8 {[%emt 0:00:35] LiveBook: 54 Games} 11. d4 {[%emt 0:00:33]} (11. Nxf6+ Qxf6 12. h3 Ne7 13. d4 Bb6 14. Be3 Ng6 15. a4 {1-0 (45) Caruana,F (2808)-Mamedyarov,S (2800) Paris 2017}) 11... Ba7 {[%emt 0:00:04]} 12. Be3 {[%emt 0:00:30]} Ng4 {[%emt 0:00:22]} 13. dxe5 {[%emt 0:01:50]} Nxe3 {[%emt 0:00:30]} 14. Nxe3 {[%emt 0:03:23]} Nxe5 $146 {[%emt 0:00:05]} ({Predecessor:} 14... Bxe3 15. fxe3 dxe5 16. Qxd8 Nxd8 17. Nxe5 {½-½ (78) Kuipers,S (2404)-De Jong,J (2454) Netherlands 2016}) 15. Nxe5 {[%emt 0:08:45]} dxe5 {[%emt 0:00:03]} 16. Qxd8 {[%emt 0:00:08]} Rxd8 {[%emt 0:00:03]} 17. Nd5 {[%emt 0:00:06]} Rd7 {[%emt 0:11:09]} 18. Rfd1 {[%emt 0:06:20]} (18. Nb4 $11 {keeps the balance.} Bb7 19. Rad1) 18... a5 {[%emt 0:02:57]} 19. a3 $17 {[%emt 0:08:35]} c6 {[%emt 0:01:31]} 20. Ne3 {[%emt 0:00:06]} Bxe3 {[%emt 0:00:32]} 21. fxe3 {[%emt 0:00:07]} Kf8 {[%emt 0:00:19]} 1/2-1/2